bitfinex/quotes_BTCUSD_20250226
["timestamp","ask_amount","ask_price","bid_price","bid_amount"]
[1740581671134,0.171094,87671.0,87670.0,0.015567]
[1740581672504,0.3293,87801.0,87671.0,0.1272]
[1740581672726,0.23951235,87878.0,87853.0,0.01454085]
[1740581672942,0.01192335,87878.0,87848.0,0.02]
[1740581673157,0.02698225,87878.0,87833.0,0.01424272]
[1740581673390,0.02698225,87878.0,87824.0,0.03424272]
[1740581673391,0.034278,87877.0,87824.0,0.03424272]
[1740581673595,0.034278,87877.0,87834.0,0.01424272]
[1740581673808,0.00575728,87876.0,87824.0,0.03424272]
[1740581674025,0.227672,87846.0,87825.0,0.01424272]
[1740581674235,0.23337628,87866.0,87825.0,0.4936]
[1740581674447,0.23337628,87866.0,87826.0,0.01454085]
[1740581674661,0.23337628,87866.0,87827.0,0.4936]
[1740581674662,0.227619,87866.0,87827.0,0.4936]
[1740581674873,0.02649769,87878.0,87844.0,0.02]
[1740581674874,0.10062583,87854.0,87844.0,0.02]
[1740581675082,0.10062583,87854.0,87828.0,0.4936]
[1740581675083,0.10062583,87854.0,87829.0,0.4936]
[1740581675289,0.10062583,87854.0,87838.0,0.01424272]
[1740581675474,0.0178567,87852.0,87840.0,0.01424272]
[1740581675929,0.170755,87845.0,87841.0,0.01454085]
[1740581676185,0.22766,87850.0,87839.0,0.01649611]
[1740581676391,0.170765,87840.0,87839.0,0.01649611]
[1740581676604,0.0178567,87852.0,87839.0,0.03103696]
[1740581676819,0.00041231,87854.0,87852.0,0.01424272]
[1740581677026,0.00041231,87854.0,87851.0,0.01454085]
[1740581677324,0.00041231,87854.0,87844.0,0.01424272]
[1740581677543,0.170762,87842.0,87840.0,0.01649611]
[1740581677758,0.170801,87821.0,87799.0,0.02639572]
[1740581677976,0.170801,87821.0,87771.0,0.015567]
[1740581677977,0.02,87845.0,87782.0,0.53819449]
[1740581678187,0.02,87839.0,87774.0,0.01324]
[1740581678396,0.227767,87809.0,87775.0,0.3665976]
[1740581678621,0.02,87842.0,87776.0,0.5366]
[1740581678834,0.02,87842.0,87777.0,0.5366]
[1740581678835,0.01786359,87823.0,87777.0,0.5366]
[1740581679040,0.01786359,87823.0,87781.0,0.36500305]
[1740581679244,0.01786359,87823.0,87782.0,0.00159434]
[1740581679449,0.227733,87822.0,87778.0,0.54984]
[1740581679651,0.170836,87804.0,87779.0,0.00159452]
[1740581679857,0.227684,87841.0,87780.0,0.5366]
[1740581680067,0.170828,87808.0,87782.0,0.227837]
[1740581680317,0.01786423,87798.0,87787.0,0.170867]
[1740581680518,0.01786423,87798.0,87797.0,0.3]
[1740581680942,0.01786423,87798.0,87789.0,0.36500305]
[1740581680943,0.01827603,87798.0,87789.0,0.44390305]
[1740581681162,0.01827603,87798.0,87784.0,1.5458]
[1740581681370,0.0004118,87798.0,87784.0,0.05085782]
[1740581681803,0.182238,87797.0,87784.0,0.05085782]
[1740581682019,0.0004118,87798.0,87784.0,0.05085782]
[1740581682235,0.13669,87790.0,87784.0,0.05085782]
[1740581682443,0.0004118,87798.0,87785.0,1.5]
[1740581682860,0.1370888,87798.0,87785.0,1.4999]
[1740581683064,0.136679,87797.0,87785.0,1.4999]
[1740581683280,0.0004118,87798.0,87787.0,0.3]
[1740581683488,0.0004118,87798.0,87797.0,0.3]
[1740581683908,0.0004118,87798.0,87797.0,1.8]
[1740581684117,0.0004118,87798.0,87786.0,0.552167]
[1740581684324,0.136693,87788.0,87786.0,0.015567]
[1740581684845,0.136693,87788.0,87787.0,1.5]
[1740581685057,0.182253,87790.0,87787.0,1.5]
[1740581685253,0.13668,87796.0,87787.0,1.5]
[1740581685431,0.0004118,87798.0,87787.0,2.052167]
[1740581685667,0.01786476,87790.0,87787.0,0.552167]
[1740581686224,0.01786476,87790.0,87789.0,1.5]
[1740581688225,0.01761476,87790.0,87789.0,1.5]
[1740581688435,0.15430376,87790.0,87789.0,1.5]
[1740581688882,0.15430376,87790.0,87789.0,1.52627058]
[1740581689207,0.0004118,87798.0,87789.0,1.52627058]
[1740581689208,0.18193,87946.0,87877.0,0.52]
[1740581689417,0.00012366,87886.0,87878.0,0.014832]
[1740581689621,0.00012366,87886.0,87878.0,0.001592]
[1740581689825,0.00012366,87886.0,87859.0,0.5366]
[1740581690046,0.13656,87874.0,87854.0,0.570823]
[1740581690261,0.00012366,87886.0,87855.0,0.55273258]
[1740581690875,0.00012366,87886.0,87856.0,0.00159319]
[1740581691388,0.00012366,87886.0,87855.0,0.55273258]
[1740581691597,0.36450828,87885.0,87855.0,0.5366]
[1740581692003,0.085366,87856.0,87855.0,0.5366]
[1740581692221,0.36450828,87876.0,87849.0,0.5366]
[1740581692933,0.113798,87875.0,87849.0,0.5366]
[1740581693130,0.36450828,87885.0,87849.0,0.5366]
[1740581693333,0.00012363,87875.0,87849.0,0.5366]
[1740581694374,0.00012363,87875.0,87850.0,0.5366]
[1740581694587,0.1138,87873.0,87836.0,0.5366]
[1740581694856,0.36450828,87874.0,87836.0,0.5366]
[1740581695069,0.113815,87862.0,87836.0,0.5366]
[1740581695286,0.1138,87873.0,87836.0,0.5366]
[1740581695508,0.085376,87847.0,87836.0,0.5366]
[1740581695745,0.36450828,87874.0,87837.0,0.5366]
[1740581696035,0.05620312,87924.0,87871.0,0.36450828]
[1740581696254,0.085289,87936.0,87935.0,0.02]
[1740581696698,0.01490185,87936.0,87923.0,0.02]
[1740581696897,0.085305,87919.0,87917.0,0.02]
[1740581697117,0.085305,87919.0,87899.0,0.034209]
[1740581697118,0.085323,87901.0,87900.0,0.02]
[1740581697329,0.00041256,87936.0,87903.0,0.02]
[1740581697531,0.11372,87935.0,87906.0,0.02]
[1740581697740,0.085319,87905.0,87904.0,0.5366]
[1740581697941,0.085319,87905.0,87903.0,0.02]
[1740581697942,0.113759,87905.0,87903.0,0.02]
[1740581698353,0.113734,87925.0,87911.0,0.02]
[1740581698564,0.08572431,87912.0,87911.0,0.02]
[1740581698982,0.00041231,87912.0,87911.0,0.02]
[1740581699168,0.08572431,87912.0,87911.0,0.02]
[1740581699954,0.00041231,87912.0,87911.0,0.02]
[1740581700141,0.08572431,87912.0,87911.0,0.02]
[1740581700352,0.00041231,87912.0,87906.0,0.02]
[1740581700584,0.08532,87904.0,87903.0,0.02]
[1740581700791,0.085321,87903.0,87902.0,0.02]
[1740581700928,0.085335,87888.0,87887.0,0.01611387]
[1740581701131,0.00041231,87912.0,87888.0,0.02]
[1740581701384,0.085335,87888.0,87887.0,0.01611387]
[1740581701786,0.068275,87879.0,87878.0,0.02]
[1740581701994,0.068278,87876.0,87875.0,0.01611387]
[1740581702561,0.08612896,87876.0,87875.0,0.01611387]
[1740581702764,0.08612896,87876.0,87875.0,8.7e-07]
[1740581703036,0.08612896,87876.0,87824.0,0.08]
[1740581703037,0.068296,87852.0,87831.0,0.02]
[1740581703238,0.068309,87835.0,87834.0,0.00504376]
[1740581703447,0.068059,87835.0,87834.0,0.02504376]
[1740581703654,0.068059,87835.0,87834.0,0.00504376]
[1740581703857,0.068059,87835.0,87834.0,0.02504376]
[1740581704061,0.068059,87835.0,87834.0,0.00504376]
[1740581704474,0.068059,87835.0,87834.0,8.6e-07]
[1740581704687,0.06818254,87835.0,87834.0,8.6e-07]
[1740581705098,0.06832,87821.0,87820.0,4.3e-07]
[1740581705363,0.0681902,87821.0,87820.0,4.3e-07]
[1740581706005,0.068336,87801.0,87800.0,0.2]
[1740581707009,0.086202,87801.0,87800.0,0.2]
[1740581707495,0.068348,87786.0,87785.0,0.000847]
[1740581707897,0.08621508,87786.0,87785.0,0.000847]
[1740581708954,0.08621508,87786.0,87785.0,1e-06]
[1740581710119,0.068367,87761.0,87759.0,0.02]
[1740581710342,0.091149,87768.0,87751.0,0.03352]
[1740581710556,0.068376,87750.0,87749.0,0.02]
[1740581710765,0.068376,87750.0,87748.0,0.02]
[1740581711211,0.068369,87758.0,87757.0,0.02]
[1740581711429,0.064369,87758.0,87757.0,0.02]
[1740581711652,0.051282,87750.0,87749.0,0.03348]
[1740581711876,0.00012338,87764.0,87750.0,0.3]
[1740581712087,0.00012338,87764.0,87763.0,0.02]
[1740581712807,0.05139638,87764.0,87763.0,1.52]
[1740581713017,0.05139638,87764.0,87763.0,1.53352]
[1740581714852,0.068332,87807.0,87763.0,1.53352]
[1740581714853,0.05126,87787.0,87786.0,0.02]
[1740581715102,0.05126,87787.0,87786.0,0.0004118]
[1740581717266,0.06912908,87787.0,87786.0,0.0004118]
[1740581717491,0.06912908,87787.0,87786.0,8e-07]
[1740581717693,0.06912908,87787.0,87766.0,0.01598567]
[1740581717694,0.01786908,87787.0,87749.0,0.02]
[1740581717900,0.01828029,87787.0,87749.0,1.52]
[1740581718383,0.00041121,87787.0,87749.0,1.52]
[1740581718525,0.01787212,87778.0,87749.0,1.52]
[1740581718743,0.01787212,87778.0,87746.0,0.03344]
[1740581718964,0.0910949,87777.0,87739.0,0.02]
[1740581719297,0.0910949,87777.0,87738.0,0.02]
[1740581720073,0.01787336,87768.0,87739.0,0.02]
[1740581720629,0.01787336,87768.0,87746.0,0.02]
[1740581720832,0.01787336,87768.0,87738.0,0.02]
[1740581721438,0.3293,87783.0,87749.0,0.02]
[1740581721638,0.034191,87742.0,87741.0,0.02]
[1740581721989,0.034192,87739.0,87738.0,0.02]
[1740581722796,0.03460296,87739.0,87738.0,0.02]
[1740581723221,0.03460296,87739.0,87720.0,4.7e-07]
[1740581723222,0.034195,87731.0,87720.0,4.7e-07]
[1740581723429,0.01483362,87791.0,87790.0,0.54]
[1740581723755,0.03452,87821.0,87820.0,0.02]
[1740581723977,0.00036,87821.0,87814.0,0.02]
[1740581724193,0.034162,87815.0,87814.0,0.02]
[1740581724409,0.00036,87821.0,87820.0,0.02]
[1740581724611,0.03452,87821.0,87820.0,0.02]
[1740581724828,0.034161,87819.0,87818.0,0.02]
[1740581726031,0.034161,87819.0,87814.0,0.02]
[1740581726256,0.00048336,87821.0,87800.0,0.3]
[1740581726456,0.034162,87816.0,87815.0,0.02]
[1740581726670,0.034163,87813.0,87812.0,0.02]
[1740581726874,0.034163,87812.0,87811.0,0.02]
[1740581727080,0.034163,87812.0,87811.0,0.04]
[1740581727557,0.045547,87820.0,87806.0,0.02]
[1740581727766,0.034166,87805.0,87804.0,0.02]
[1740581728391,0.034168,87800.0,87799.0,0.02]
[1740581728519,0.045553,87808.0,87792.0,0.02]
[1740581728520,0.034171,87793.0,87792.0,0.02]
[1740581728731,0.0910949,87807.0,87769.0,0.02]
[1740581728929,0.0910949,87807.0,87747.0,4.7e-07]
[1740581728930,0.0910949,87797.0,87754.0,0.5366]
[1740581729146,0.079761,87762.0,87761.0,0.02]
[1740581729474,0.079761,87762.0,87747.0,4.7e-07]
[1740581729475,0.045578,87762.0,87756.0,0.02]
[1740581729704,0.079761,87762.0,87761.0,0.02]
[1740581730075,0.045574,87769.0,87756.0,0.00012338]
[1740581730076,0.034185,87757.0,87756.0,0.00012338]
[1740581730560,0.034185,87757.0,87756.0,3.8e-07]
[1740581731724,0.017092,87757.0,87756.0,3.8e-07]
[1740581732897,0.022789,87760.0,87735.0,0.01593146]
[1740581732898,0.017096,87739.0,87735.0,0.01593146]
[1740581733386,0.017096,87739.0,87737.0,0.02]
[1740581733604,0.017096,87739.0,87732.0,0.02]
[1740581733860,0.017096,87739.0,87731.0,0.02]
[1740581734086,0.017096,87739.0,87724.0,0.01593146]
[1740581734087,0.017096,87739.0,87732.0,0.02]
[1740581734599,0.03497196,87739.0,87723.0,0.02549096]
[1740581734848,0.03497196,87739.0,87732.0,0.02]
[1740581735092,0.03497196,87739.0,87723.0,0.02549096]
[1740581735335,0.03497196,87739.0,87737.0,0.02]
[1740581735581,0.03497196,87739.0,87734.0,0.02]
[1740581735802,0.03497196,87739.0,87737.0,0.02]
[1740581736067,0.03497196,87739.0,87724.0,0.02549143]
[1740581736285,0.03497196,87739.0,87737.0,0.02]
[1740581736696,0.03497196,87739.0,87724.0,0.02549143]
[1740581736991,0.03497196,87739.0,87738.0,0.01679923]
[1740581738820,0.03297196,87739.0,87738.0,0.01679923]
[1740581739061,0.03297196,87739.0,87738.0,0.0008472]
[1740581739543,0.03282098,87739.0,87738.0,0.0008472]
[1740581739792,0.03497196,87739.0,87738.0,0.0208472]
[1740581740001,0.01787596,87739.0,87738.0,0.55744767]
[1740581740228,0.01787596,87739.0,87738.0,0.58293863]
[1740581741668,0.017092,87756.0,87755.0,0.02]
[1740581741907,0.017092,87756.0,87738.0,0.57888145]
[1740581741908,0.00054682,87757.0,87756.0,0.02]
[1740581742938,0.01763882,87757.0,87756.0,0.04143378]
[1740581745581,0.01763882,87757.0,87756.0,7.8e-07]
[1740581746420,0.022793,87746.0,87739.0,4.7e-07]
[1740581746639,0.017095,87740.0,87739.0,4.7e-07]
[1740581746849,0.017095,87740.0,87739.0,0.02000047]
[1740581747289,0.022794,87741.0,87729.0,2e-07]
[1740581747489,0.017101,87712.0,87711.0,4.7e-07]
[1740581748522,0.017103,87700.0,87699.0,4.7e-07]
[1740581749172,0.03498256,87700.0,87699.0,4.7e-07]
[1740581749627,0.022793,87744.0,87699.0,0.00659434]
[1740581749833,0.1362949,87779.0,87715.0,0.0910949]
[1740581750044,0.0199998,87796.0,87715.0,0.0910949]
[1740581750045,0.022783,87782.0,87729.0,0.5]
[1740581750290,0.017095,87742.0,87741.0,1.5]
[1740581750521,0.00054689,87757.0,87735.0,0.01324]
[1740581750743,0.017095,87742.0,87741.0,0.02553001]
[1740581750970,0.00054689,87757.0,87741.0,0.56213001]
[1740581751191,0.017095,87743.0,87742.0,0.30159515]
[1740581751399,0.017095,87742.0,87741.0,0.02553001]
[1740581752027,0.017097,87732.0,87731.0,0.5366]
[1740581752260,0.022791,87751.0,87730.0,0.00499767]
[1740581752261,0.017097,87731.0,87730.0,0.00499767]
[1740581752684,0.017099,87723.0,87722.0,0.00159578]
[1740581752888,0.017099,87722.0,87713.0,0.53819576]
[1740581753101,0.017099,87722.0,87713.0,0.5366]
[1740581753306,0.0452,87760.0,87714.0,0.5366]
[1740581753540,0.017102,87708.0,87707.0,0.5366]
[1740581753976,0.017102,87708.0,87707.0,0.53701096]
[1740581754215,0.022794,87739.0,87707.0,0.53701096]
[1740581754216,0.0452,87760.0,87707.0,0.54197553]
[1740581754425,0.01787843,87736.0,87707.0,0.00537553]
[1740581754640,0.0910949,87741.0,87707.0,0.00537553]
[1740581755162,0.01787935,87736.0,87707.0,0.00537553]
[1740581755396,0.01787935,87736.0,87707.0,0.00041096]
[1740581756833,0.01787935,87736.0,87708.0,0.00496457]
[1740581757072,0.0910949,87735.0,87708.0,0.00496457]
[1740581757554,0.0910949,87735.0,87708.0,0.03022788]
[1740581758249,0.0910949,87735.0,87708.0,0.02526331]
[1740581758963,0.0910949,87750.0,87709.0,0.04108495]
[1740581758967,0.0910949,87734.0,87709.0,0.04108495]
[1740581759225,0.0910949,87723.0,87709.0,0.04108495]
[1740581759481,0.0910949,87717.0,87709.0,0.004985]
[1740581759711,0.0910949,87717.0,87709.0,0.00457508]
[1740581760434,0.0910949,87717.0,87708.0,0.00043665]
[1740581760697,0.0910949,87717.0,87696.0,0.0058231]
[1740581760922,0.0910949,87707.0,87696.0,0.00594625]
[1740581761436,0.0178838,87716.0,87696.0,0.00594625]
[1740581761663,0.0178838,87716.0,87702.0,0.02]
[1740581761883,0.0467,87722.0,87702.0,0.02]
[1740581762563,0.0488,87742.0,87736.0,0.02]
[1740581762783,0.25378154,87786.0,87728.0,0.02]
[1740581762784,0.0488,87765.0,87728.0,0.02]
[1740581762990,0.0910949,87764.0,87723.0,0.02]
[1740581763190,0.0910949,87764.0,87716.0,4.7e-07]
[1740581763397,0.0910949,87755.0,87703.0,0.02]
[1740581763597,0.3,87754.0,87711.0,0.02]
[1740581763815,0.0910949,87755.0,87710.0,0.02]
[1740581764017,0.39150611,87755.0,87704.0,0.04]
[1740581764227,0.39150611,87755.0,87699.0,0.02]
[1740581764228,0.25378154,87754.0,87699.0,0.02]
[1740581764439,0.0910949,87735.0,87692.0,0.02]
[1740581764647,0.0910949,87735.0,87684.0,0.04]
[1740581764862,0.0910949,87716.0,87677.0,0.000848]
[1740581765070,0.0482,87715.0,87696.0,0.0057831]
[1740581765495,0.30198154,87715.0,87696.0,0.0057831]
[1740581766132,0.01788541,87711.0,87696.0,0.00590625]
[1740581766329,0.30198154,87715.0,87696.0,0.00590625]
[1740581766555,0.0910949,87710.0,87696.0,0.00590625]
[1740581767139,0.0910949,87699.0,87696.0,0.00590625]
[1740581767309,0.0910949,87699.0,87677.0,0.000848]
[1740581767508,0.09121818,87699.0,87677.0,0.000848]
[1740581767736,0.0910949,87678.0,87677.0,0.000848]
[1740581767951,0.0486,87678.0,87677.0,0.000848]
[1740581768500,0.08404022,87678.0,87677.0,0.000848]
[1740581769150,0.0836001,87678.0,87677.0,0.000848]
[1740581769579,0.017113,87651.0,87650.0,1e-06]
[1740581770457,0.03500786,87651.0,87650.0,1e-06]
[1740581770878,0.022817,87654.0,87641.0,0.019371]
[1740581771093,0.017115,87642.0,87641.0,0.01949444]
[1740581771536,0.017115,87642.0,87641.0,0.03949444]
[1740581772199,0.017115,87642.0,87641.0,1.53949444]
[1740581772635,0.017115,87642.0,87641.0,0.03949444]
[1740581772854,0.017115,87642.0,87641.0,0.01949444]
[1740581773661,0.03500864,87642.0,87641.0,0.01949444]
[1740581773871,0.03500864,87642.0,87641.0,0.03949444]
[1740581774055,0.03200864,87642.0,87641.0,0.03949444]
[1740581774681,0.01789364,87642.0,87641.0,0.03949444]
[1740581774881,0.03500864,87642.0,87641.0,0.87609491]
[1740581775308,0.03500864,87642.0,87641.0,0.57609491]
[1740581775700,0.017115,87642.0,87641.0,0.57609491]
[1740581775906,0.01711,87663.0,87662.0,0.019371]
[1740581776120,0.01711,87663.0,87662.0,0.03937147]
[1740581776907,0.017108,87675.0,87674.0,0.039371]
[1740581777111,0.017106,87687.0,87686.0,0.039371]
[1740581777321,0.017106,87687.0,87674.0,0.53660047]
[1740581777322,0.017107,87679.0,87678.0,0.01324]
[1740581777531,0.017108,87675.0,87674.0,0.019371]
[1740581777738,0.09128096,87713.0,87668.0,0.019371]
[1740581777995,0.017109,87672.0,87671.0,0.019371]
[1740581778167,0.01711,87668.0,87664.0,0.019371]
[1740581778370,0.01711,87665.0,87664.0,0.019371]
[1740581778567,0.01788891,87668.0,87657.0,0.01324]
[1740581778818,0.017111,87658.0,87657.0,0.032611]
[1740581778966,0.017111,87658.0,87657.0,0.019371]
[1740581779825,0.09128096,87694.0,87652.0,0.019371]
[1740581780031,0.022809,87681.0,87647.0,0.019371]
[1740581780237,0.017114,87647.0,87646.0,0.01549666]
[1740581781140,0.017115,87642.0,87641.0,0.019371]
[1740581781508,0.017115,87642.0,87641.0,0.01949444]
[1740581782171,0.022817,87653.0,87641.0,0.01949444]
[1740581782172,0.10046418,87764.0,87641.0,0.01949444]
[1740581782388,0.09128096,87672.0,87642.0,0.019371]
[1740581782589,0.29998154,87682.0,87646.0,0.019371]
[1740581782797,0.29998154,87682.0,87650.0,0.019371]
[1740581783840,0.29998154,87682.0,87651.0,0.01549666]
[1740581784266,0.0178922,87675.0,87651.0,0.01549666]
[1740581784499,0.01789639,87675.0,87651.0,0.01549666]
[1740581785140,0.01789639,87675.0,87652.0,0.01549666]
[1740581785356,0.09128096,87673.0,87652.0,0.01549666]
[1740581785567,0.09128096,87664.0,87652.0,0.01549666]
[1740581786226,0.09128096,87664.0,87646.0,0.000424]
[1740581786433,0.09128096,87673.0,87646.0,0.000424]
[1740581786643,0.09128096,87671.0,87646.0,0.000424]
[1740581787303,0.09128096,87661.0,87646.0,0.000424]
[1740581787720,0.09128096,87671.0,87646.0,0.000424]
[1740581789238,0.01789408,87665.0,87646.0,0.000424]
[1740581789441,0.01789408,87665.0,87658.0,0.019371]
[1740581789558,0.019371,87691.0,87658.0,0.019371]
[1740581789762,0.09128096,87694.0,87658.0,0.019371]
[1740581790164,0.09128096,87694.0,87659.0,0.019371]
[1740581790375,0.0472,87700.0,87676.0,0.019371]
[1740581790578,0.034308,87718.0,87691.0,0.019371]
[1740581790781,0.041884,87740.0,87689.0,0.019371]
[1740581790782,0.09128096,87724.0,87689.0,0.019371]
[1740581790989,0.09128096,87715.0,87680.0,0.019371]
[1740581791419,0.09128096,87724.0,87688.0,0.019371]
[1740581791647,0.0001233,87715.0,87689.0,0.019371]
[1740581792282,0.00036,87700.0,87696.0,0.019371]
[1740581792484,0.00036,87700.0,87689.0,0.019371]
[1740581792687,0.00036,87700.0,87692.0,0.019371]
[1740581793108,0.00036,87700.0,87699.0,0.019371]
[1740581793897,0.037,87700.0,87699.0,0.019371]
[1740581794112,0.0001233,87715.0,87714.0,0.019371]
[1740581794321,0.0001233,87715.0,87714.0,0.55597147]
[1740581795580,0.0001233,87715.0,87714.0,0.01937147]
[1740581796410,0.0001233,87715.0,87714.0,0.02096734]
[1740581796614,0.0001233,87715.0,87714.0,0.01937147]
[1740581797259,0.0001233,87715.0,87714.0,0.02096731]
[1740581797887,0.00034,87755.0,87754.0,0.019371]
[1740581798086,0.00075147,87755.0,87754.0,0.09877147]
[1740581798530,0.00075147,87755.0,87754.0,1.1543985]
[1740581798775,0.00075147,87755.0,87754.0,1.095619]
[1740581798979,0.01784447,87755.0,87754.0,2.49511147]
[1740581799255,0.01784447,87755.0,87754.0,2.46250047]
[1740581799410,0.01784447,87755.0,87754.0,2.49734857]
[1740581799616,0.01784447,87755.0,87754.0,0.01547757]
[1740581799863,0.01784447,87755.0,87754.0,0.0154771]
[1740581800245,0.01784447,87755.0,87754.0,1e-07]
[1740581800246,0.03571901,87755.0,87754.0,1e-07]
[1740581800676,0.022797,87729.0,87721.0,0.019371]
[1740581800904,0.0228,87717.0,87716.0,0.019371]
[1740581801061,0.017102,87708.0,87707.0,0.019371]
[1740581801564,0.022798,87726.0,87707.0,0.019371]
[1740581801565,0.05729742,87791.0,87707.0,0.019371]
[1740581801760,0.01788245,87729.0,87703.0,0.019371]
[1740581801963,0.36465366,87732.0,87703.0,0.019371]
[1740581802185,0.00041121,87732.0,87709.0,0.019371]
[1740581802389,0.00041121,87732.0,87686.0,0.00485202]
[1740581802390,0.00041121,87732.0,87713.0,0.019371]
[1740581802620,0.00041121,87732.0,87714.0,0.019371]
[1740581803207,0.00041121,87732.0,87689.0,0.00201995]
[1740581803208,0.00041121,87732.0,87728.0,0.019371]
[1740581803732,0.00041121,87732.0,87731.0,0.019371]
[1740581804902,0.00041121,87732.0,87731.0,0.33420615]
[1740581805117,0.00034,87755.0,87731.0,0.33420615]
[1740581805118,0.00034,87755.0,87754.0,0.019371]
[1740581805349,0.00046331,87755.0,87754.0,0.019371]
[1740581807251,0.00046331,87755.0,87754.0,0.04409634]
[1740581808285,0.00046331,87755.0,87754.0,0.019371]
[1740581809654,0.00046331,87755.0,87741.0,0.019371]
[1740581809902,0.00046331,87755.0,87735.0,0.02472534]
[1740581810120,0.00046331,87755.0,87741.0,0.019371]
[1740581810332,0.00046331,87755.0,87747.0,0.019371]
[1740581810542,0.00046331,87755.0,87754.0,0.019371]
[1740581810748,0.00046331,87755.0,87753.0,0.019371]
[1740581811156,0.01833704,87755.0,87754.0,0.019371]
[1740581811770,0.00046331,87755.0,87754.0,0.019371]
[1740581811970,0.00046331,87755.0,87746.0,0.019371]
[1740581812220,0.00046331,87755.0,87751.0,0.019371]
[1740581812426,0.00046331,87755.0,87754.0,0.019371]
[1740581812835,0.00046331,87755.0,87752.0,0.019371]
[1740581813011,0.00046331,87755.0,87748.0,0.019371]
[1740581814387,0.00046331,87755.0,87749.0,0.0153557]
[1740581814624,0.00046331,87755.0,87749.0,7e-07]
[1740581814910,0.09118732,87754.0,87739.0,4e-08]
[1740581815035,0.10906213,87754.0,87739.0,4e-08]
[1740581815246,0.01787481,87754.0,87739.0,4e-08]
[1740581815869,0.01787481,87754.0,87736.0,0.019371]
[1740581817355,0.01787481,87754.0,87737.0,0.03072276]
[1740581817755,0.00046331,87755.0,87737.0,0.03072276]
[1740581817990,0.00046331,87755.0,87739.0,0.019371]
[1740581818225,0.00046331,87755.0,87741.0,0.019371]
[1740581818813,0.00046331,87755.0,87747.0,0.019371]
[1740581819017,0.00046331,87755.0,87754.0,0.019371]
[1740581820065,0.00046331,87755.0,87754.0,0.08733022]
[1740581820290,0.00046331,87755.0,87749.0,2.2e-07]
[1740581820499,0.00046331,87755.0,87735.0,0.0080624]
[1740581820915,0.13628732,87754.0,87732.0,1e-07]
[1740581821100,0.09118732,87743.0,87732.0,1e-07]
[1740581821323,0.09118732,87734.0,87732.0,1e-07]
[1740581821606,0.03361145,87733.0,87732.0,1e-07]
[1740581822391,0.01788224,87741.0,87732.0,1e-07]
[1740581824001,0.10906956,87741.0,87732.0,1e-07]
[1740581824223,0.0142681,87740.0,87732.0,1e-07]
[1740581824508,0.0142681,87740.0,87677.0,0.3753]
[1740581824509,0.02,87733.0,87689.0,8e-07]
[1740581824725,0.03361145,87739.0,87689.0,8e-07]
[1740581824726,0.09118732,87714.0,87689.0,8e-07]
[1740581824940,0.03361145,87713.0,87689.0,8e-07]
[1740581825143,0.09118732,87712.0,87689.0,8e-07]
[1740581825410,0.0178876,87716.0,87689.0,8e-07]
[1740581825633,0.09118732,87713.0,87689.0,8e-07]
[1740581826130,0.09118732,87713.0,87689.0,1e-08]
[1740581826648,0.09118732,87704.0,87663.0,0.02]
[1740581826851,0.3293,87703.0,87664.0,0.02]
[1740581827097,0.3293,87703.0,87678.0,0.02]
[1740581827796,0.3293,87703.0,87670.0,0.02]
[1740581828199,0.3293,87703.0,87668.0,0.02]
[1740581828382,0.3293,87703.0,87670.0,0.0001233]
[1740581829382,0.3293,87703.0,87670.0,3e-07]
[1740581829610,0.3293,87703.0,87648.0,4.7e-07]
[1740581829611,0.01789019,87695.0,87648.0,4.7e-07]
[1740581829884,0.09118732,87693.0,87646.0,0.000424]
[1740581830096,0.09118732,87664.0,87636.0,8e-07]
[1740581830306,0.09118732,87675.0,87636.0,8e-07]
[1740581830968,0.09118732,87675.0,87625.0,0.5366]
[1740581830969,0.09118732,87662.0,87625.0,0.43917827]
[1740581831180,0.10030605,87662.0,87625.0,0.43917827]
[1740581831392,0.3651155,87644.0,87625.0,0.00041162]
[1740581832629,0.3293,87643.0,87625.0,0.00041162]
[1740581834117,0.3651155,87635.0,87625.0,0.00041162]
[1740581835002,0.3293,87634.0,87625.0,0.00041162]
[1740581835206,0.3651155,87626.0,87625.0,0.00041162]
[1740581835384,0.6944155,87626.0,87625.0,0.00041162]
[1740581836237,0.3293,87626.0,87625.0,0.00041162]
[1740581836656,0.3310838,87626.0,87625.0,0.00041162]
[1740581836864,0.3293,87626.0,87625.0,0.00041162]
[1740581837072,0.33147816,87626.0,87625.0,0.00041162]
[1740581837322,0.3293,87633.0,87625.0,0.00041162]
[1740581837535,0.37839155,87651.0,87625.0,0.00041162]
[1740581837747,0.3293,87651.0,87625.0,0.00041162]
[1740581837959,0.01789882,87632.0,87625.0,0.00041162]
[1740581838164,0.3293,87651.0,87625.0,0.00041162]
[1740581838389,0.01789612,87645.0,87625.0,0.00041162]
[1740581838815,0.05261573,87645.0,87604.0,0.0476]
[1740581839024,0.3651155,87643.0,87608.0,8e-07]
[1740581839240,0.3,87642.0,87608.0,8e-07]
[1740581839893,0.01790126,87634.0,87608.0,8e-07]
[1740581840754,0.05262139,87634.0,87608.0,8e-07]
[1740581840986,0.3,87630.0,87608.0,8e-07]
[1740581841202,0.3,87628.0,87608.0,8e-07]
[1740581841807,0.3293,87629.0,87608.0,8e-07]
[1740581843949,0.09576532,87662.0,87608.0,8e-07]
[1740581843950,0.3293,87639.0,87608.0,8e-07]
[1740581844392,0.01790048,87624.0,87608.0,8e-07]
[1740581844603,0.3293,87639.0,87609.0,0.16750492]
[1740581844862,0.01789918,87634.0,87610.0,0.30159779]
[1740581845103,0.3293,87661.0,87618.0,0.0459]
[1740581845580,0.01789709,87646.0,87623.0,0.09130492]
[1740581846027,0.3,87668.0,87618.0,0.38424]
[1740581846243,0.01789592,87659.0,87618.0,0.371]
[1740581846672,0.000849,87634.0,87618.0,0.371]
[1740581847115,0.000849,87634.0,87618.0,0.3251]
[1740581847322,0.000849,87634.0,87619.0,0.09130492]
[1740581847527,0.000849,87634.0,87618.0,0.3251]
[1740581847958,0.01789616,87633.0,87618.0,0.3251]
[1740581848146,0.000849,87634.0,87618.0,0.3251]
[1740581849909,0.000849,87634.0,87610.0,0.0004245]
[1740581850738,0.01789832,87629.0,87610.0,0.0004245]